bitfinex/quotes_ETHUSD_20250210
["timestamp","ask_amount","ask_price","bid_price","bid_amount"]
[1739205201659,3.76761,2654.2,2654.1,0.0433173]
[1739205203396,3.76748,2654.3,2654.1,0.0433173]
[1739205204306,3.76761,2654.2,2654.1,0.0433173]
[1739205204605,3.76747,2654.3,2654.1,0.0433173]
[1739205205103,3.76693,2654.7,2654.3,0.7839]
[1739205205277,3.76693,2654.7,2654.4,0.04297369]
[1739205205677,3.76671,2654.9,2654.4,3.76722]
[1739205205882,3.76671,2654.9,2654.5,0.04286795]
[1739205206579,3.76671,2654.9,2654.4,3.76721]
[1739205206775,7.53346,2654.9,2654.6,0.04270956]
[1739205206977,3.76671,2654.9,2654.5,0.04281529]
[1739205207182,3.76676,2654.8,2654.7,0.04260384]
[1739205207380,3.7669,2654.7,2654.6,0.04270956]
[1739205207596,3.7669,2654.7,2654.3,0.7839]
[1739205207814,3.7667,2654.9,2654.3,4.55129]
[1739205208002,3.76663,2654.9,2654.4,3.76719]
[1739205208313,3.76634,2655.1,2654.5,3.76718]
[1739205208519,3.76657,2655.0,2654.4,3.76719]
[1739205208672,3.76634,2655.1,2654.4,3.76719]
[1739205208874,3.76547,2655.8,2655.1,3.7662]
[1739205209181,3.76571,2655.6,2655.1,3.76632]
[1739205209482,3.76586,2655.5,2654.9,4.55041]
[1739205209691,3.76571,2655.6,2655.0,3.76647]
[1739205210091,3.76571,2655.6,2655.1,3.76625]
[1739205210289,3.76535,2655.8,2655.1,3.76625]
[1739205210290,3.76535,2655.8,2655.2,0.7839]
[1739205210485,3.76557,2655.7,2655.2,0.7839]
[1739205210892,3.76569,2655.6,2655.2,0.7839]
[1739205211336,3.76647,2655.0,2654.9,0.7839]
[1739205211483,3.76647,2655.0,2653.8,8.34293348]
[1739205211484,3.76676,2654.8,2654.3,0.7839]
[1739205212122,3.76701,2654.7,2654.3,0.7839]
[1739205212413,3.76709,2654.6,2654.3,0.7839]
[1739205212712,3.76732,2654.4,2654.3,0.7839]
[1739205213383,3.76761,2654.2,2654.0,0.7839]
[1739205214138,3.7674,2654.4,2654.0,0.7839]
[1739205214821,3.76761,2654.2,2654.0,0.7839]
[1739205215121,3.76761,2654.2,2654.1,0.04318566]
[1739205215338,3.7674,2654.4,2654.1,0.04318566]
[1739205215542,3.76682,2654.8,2654.3,3.76738]
[1739205215699,3.76692,2654.7,2654.2,4.55146]
[1739205215905,3.76682,2654.8,2654.3,0.04297414]
[1739205216106,3.76682,2654.8,2654.3,3.76746]
[1739205216307,3.76682,2654.8,2654.4,0.04288812]
[1739205217142,7.53368,2654.8,2654.4,0.04288812]
[1739205217339,3.76682,2654.8,2654.4,0.04288812]
[1739205217539,3.76691,2654.7,2654.4,0.04288812]
[1739205217841,3.76682,2654.8,2654.2,4.55137]
[1739205218031,3.76682,2654.8,2654.5,0.04268038]
[1739205218227,3.76657,2655.0,2654.4,3.76723]
[1739205218410,3.76657,2655.0,2654.6,0.04257465]
[1739205218746,3.76579,2655.5,2655.0,0.7839]
[1739205219042,6.7657,2655.6,2655.1,3.76631]
[1739205219206,6.7657,2655.6,2655.1,3.80833636]
[1739205219408,0.64165224,2655.8,2655.3,0.7839]
[1739205219633,0.64165224,2655.8,2655.4,3.7658]
[1739205219830,0.64165224,2655.8,2655.4,0.04170933]
[1739205220535,3.76537,2655.8,2655.4,0.04170933]
[1739205221043,3.76537,2655.8,2655.3,0.32720933]
[1739205221227,3.76537,2655.8,2655.5,0.04319974]
[1739205221438,3.76537,2655.8,2655.4,0.04331353]
[1739205221741,3.76537,2655.8,2655.3,0.32720933]
[1739205221742,3.76549,2655.7,2655.5,0.04319974]
[1739205221953,3.76562,2655.6,2655.5,0.04319974]
[1739205222256,3.76559,2655.7,2655.0,3.76634]
[1739205222461,3.76572,2655.6,2655.0,3.76634]
[1739205222642,3.76572,2655.6,2655.1,0.04026706]
[1739205222807,3.7658,2655.5,2655.1,0.04026706]
[1739205223154,3.76559,2655.7,2655.2,3.76618]
[1739205223306,3.76559,2655.7,2655.1,0.04026706]
[1739205223648,3.7658,2655.5,2655.1,0.04026706]
[1739205224137,3.7658,2655.5,2655.2,0.7839]
[1739205224536,7.53164,2655.5,2655.3,0.04319356]
[1739205224842,3.76591,2655.4,2655.3,0.04319356]
[1739205225023,3.76591,2655.4,2655.2,0.7839]
[1739205225214,3.76591,2655.4,2655.3,0.04319356]
[1739205225547,3.76591,2655.4,2655.2,0.7839]
[1739205225750,3.76591,2655.4,2655.3,0.04319356]
[1739205226154,3.76591,2655.4,2655.2,0.7839]
[1739205226328,3.76577,2655.5,2655.3,0.04319356]
[1739205226646,7.53138,2655.6,2655.2,0.7839]
[1739205226846,3.76576,2655.5,2655.4,0.04307976]
[1739205227057,3.76591,2655.4,2655.3,0.04319356]
[1739205227350,3.76591,2655.4,2655.2,0.7839]
[1739205227714,3.76555,2655.7,2655.2,0.7839]
[1739205228116,7.53114,2655.7,2655.2,0.7839]
[1739205228324,3.76555,2655.7,2655.2,4.55006]
[1739205228541,3.76565,2655.6,2655.3,0.04284992]
[1739205228964,3.76565,2655.6,2655.2,0.7839]
[1739205229152,3.76555,2655.7,2655.4,0.04273612]
[1739205229339,0.7959,2656.4,2655.3,0.04284992]
[1739205229537,3.76548,2655.7,2655.3,0.04284992]
[1739205229732,3.76548,2655.7,2655.2,4.54997]
[1739205229936,3.76548,2655.7,2655.3,0.04284992]
[1739205230148,3.76548,2655.7,2655.2,4.54997]
[1739205230362,3.76548,2655.7,2655.4,0.04273612]
[1739205230539,3.76548,2655.7,2655.3,0.04284992]
[1739205230738,3.76548,2655.7,2655.2,4.54997]
[1739205231062,3.76548,2655.7,2655.3,0.04284992]
[1739205231566,3.76576,2655.5,2655.4,0.04273612]
[1739205231921,3.76605,2655.3,2655.2,0.7839]
[1739205232259,3.76605,2655.3,2655.2,0.03989489]
[1739205232619,3.76637,2655.1,2654.9,0.8118]
[1739205232962,3.76564,2655.6,2654.6,0.8118]
[1739205233164,3.76687,2654.8,2654.3,0.8118]
[1739205233345,3.7665,2655.0,2654.3,4.57922]
[1739205233548,3.7665,2655.0,2654.5,3.7671]
[1739205233722,3.76623,2655.2,2654.5,3.7671]
[1739205234059,3.76635,2655.1,2654.5,3.76709]
[1739205234456,3.7665,2655.0,2654.4,3.7673]
[1739205234661,3.7665,2655.0,2654.5,3.76715]
[1739205234843,3.7665,2655.0,2654.3,4.5792]
[1739205235049,7.53308,2655.0,2654.3,8.34656]
[1739205235358,3.76624,2655.2,2654.3,0.8118]
[1739205235567,3.76599,2655.4,2654.7,0.8118]
[1739205235759,3.76571,2655.6,2655.1,3.76626]
[1739205235760,3.76575,2655.6,2655.1,3.76626]
[1739205235974,3.76596,2655.4,2655.0,0.8118]
[1739205236181,3.76621,2655.2,2655.0,0.8118]
[1739205236480,0.7959,2655.7,2654.5,0.8118]
[1739205236481,3.76633,2655.1,2654.5,0.8118]
[1739205236834,3.76633,2655.1,2654.6,3.76702]
[1739205237245,3.76582,2655.5,2654.9,0.8118]
[1739205237579,3.76619,2655.2,2654.9,0.8118]
[1739205238153,3.76599,2655.4,2654.9,0.8118]
[1739205238349,3.76548,2655.7,2655.0,3.76647]
[1739205238554,3.7658,2655.5,2655.0,3.76647]
[1739205238759,3.76555,2655.7,2655.0,3.76639]
[1739205238953,7.53116,2655.7,2655.1,3.76621]
[1739205239152,7.53116,2655.7,2655.2,0.8069]
[1739205239372,3.76529,2655.9,2655.4,3.76586]
[1739205239539,3.76535,2655.8,2655.2,0.8069]
[1739205239867,4.56095,2656.1,2655.4,3.76577]
[1739205240066,4.56095,2656.1,2655.3,7.53193]
[1739205240067,3.76515,2656.0,2655.3,7.53193]
[1739205240265,3.76505,2656.1,2655.6,0.8069]
[1739205240631,3.76508,2656.0,2655.6,0.8069]
[1739205241059,3.7652,2655.9,2655.6,0.8069]
[1739205241263,3.76499,2656.1,2655.6,0.8069]
[1739205241672,3.76471,2656.3,2655.7,3.76534]
[1739205241873,3.7648,2656.2,2655.7,3.76534]
[1739205242175,3.76471,2656.3,2655.7,3.76534]
[1739205242371,0.8288,2656.7,2655.8,0.0376514]
[1739205242572,3.76411,2656.7,2656.4,0.8069]
[1739205242868,0.8288,2657.0,2656.1,3.76479]
[1739205242869,0.8288,2657.0,2656.1,0.8069]
[1739205243237,3.7647,2656.3,2656.1,0.8069]
[1739205243437,3.76463,2656.3,2656.1,0.8069]
[1739205243638,3.76503,2656.1,2655.8,0.8069]
[1739205243861,3.7652,2655.9,2655.8,0.8069]
[1739205244061,3.76549,2655.7,2655.4,0.8069]
[1739205244974,3.76549,2655.7,2655.0,0.8069]
[1739205245177,3.76549,2655.7,2655.5,0.04242409]
[1739205245356,3.76536,2655.8,2655.3,3.76604]
[1739205245674,3.76536,2655.8,2655.6,0.04231031]
[1739205245877,3.76536,2655.8,2655.3,3.76602]
[1739205246075,3.76536,2655.8,2655.7,0.04219653]
[1739205246275,3.76536,2655.8,2655.2,3.7661]
[1739205246877,3.76536,2655.8,2655.3,0.04265167]
[1739205247176,3.76526,2655.9,2655.5,0.8069]
[1739205247342,3.76526,2655.9,2655.4,0.04253788]
[1739205247673,3.76571,2655.6,2655.4,0.04253788]
[1739205248878,3.76543,2655.8,2655.4,0.04253788]
[1739205249085,3.76514,2656.0,2655.4,0.04253788]
[1739205249284,3.76522,2655.9,2655.4,0.04253788]
[1739205249485,3.76539,2655.8,2655.4,0.04253788]
[1739205250182,3.76522,2655.9,2655.4,0.04253788]
[1739205250361,3.76535,2655.8,2655.4,0.04253788]
[1739205250547,3.76554,2655.7,2655.4,0.04253788]
[1739205250749,3.76535,2655.8,2655.4,0.04253788]
[1739205251083,3.76565,2655.6,2655.4,0.04253788]
[1739205251478,3.76557,2655.7,2655.4,0.04253788]
[1739205251984,3.7651,2656.0,2655.4,0.04253788]
[1739205252483,3.76539,2655.8,2655.4,0.04253788]
[1739205252886,3.76566,2655.6,2655.4,0.04253788]
[1739205253085,3.76494,2656.1,2655.4,0.04253788]
[1739205253086,3.76576,2655.5,2655.4,0.04253788]
[1739205253657,7.53137,2655.6,2655.0,4.57334]
[1739205253853,7.5309,2655.8,2655.4,0.04255911]
[1739205254058,3.76548,2655.7,2655.2,3.7661]
[1739205254486,5.33673735,2656.0,2655.0,4.57329]
[1739205254786,3.76625,2655.2,2654.7,0.8069]
[1739205254962,3.76626,2655.2,2655.1,0.03983621]
[1739205255288,3.76626,2655.2,2654.8,3.76675]
[1739205255463,3.76591,2655.4,2654.8,3.76675]
[1739205255653,3.76591,2655.4,2654.9,0.04320963]
[1739205255855,3.76621,2655.2,2654.7,4.5738]
[1739205256291,3.76621,2655.2,2654.8,0.04332347]
[1739205257085,7.53249,2655.2,2654.8,0.04332347]
[1739205257310,3.76621,2655.2,2654.8,0.04332347]
[1739205257509,3.766,2655.4,2654.8,0.04332347]
[1739205257711,3.7662,2655.2,2654.8,0.04332347]
[1739205258010,3.76632,2655.2,2654.8,0.04332347]
[1739205258210,7.53221,2655.3,2654.8,0.04332347]
[1739205258409,3.76607,2655.3,2654.8,0.04332347]
[1739205258615,3.76596,2655.4,2654.9,3.76658]
[1739205258913,3.76596,2655.4,2655.0,0.04309579]
[1739205259991,3.76627,2655.2,2655.0,0.04309579]
[1739205260332,3.76627,2655.2,2654.7,4.57375]
[1739205260503,7.53205,2655.4,2654.8,3.81006781]
[1739205260698,3.76601,2655.4,2654.8,0.04339781]
[1739205260882,3.7662,2655.2,2654.8,0.04339781]
[1739205261084,3.7664,2655.1,2654.8,0.04339781]
[1739205261901,3.76656,2655.0,2654.8,0.04339781]
[1739205262351,3.76624,2655.2,2654.6,3.76692]
[1739205262641,3.76633,2655.1,2654.7,0.04351166]
[1739205263184,3.76654,2655.0,2654.7,0.04351166]
[1739205263401,3.76676,2654.8,2654.7,0.04351166]
[1739205263605,3.76659,2655.0,2654.5,0.8033]
[1739205263784,3.76659,2655.0,2654.7,0.04363561]
[1739205263979,3.76659,2655.0,2654.6,3.81077947]
[1739205264232,3.76659,2655.0,2654.8,0.04352176]
[1739205264579,3.76659,2655.0,2654.9,0.04340792]
[1739205264932,3.76625,2655.2,2654.7,3.76687]
[1739205265124,3.76625,2655.2,2654.8,0.84682176]
[1739205265379,3.7664,2655.1,2654.8,0.84682176]
[1739205265788,3.76647,2655.0,2654.8,0.84682176]
[1739205265956,3.7664,2655.1,2654.8,0.84682176]
[1739205266164,3.76662,2654.9,2654.8,0.04352176]
[1739205266682,3.76648,2655.0,2654.6,0.8033]
[1739205266876,3.76648,2655.0,2654.8,0.04353239]
[1739205267083,3.76648,2655.0,2654.7,0.04364624]
[1739205267281,3.76648,2655.0,2654.9,0.04341855]
[1739205267465,3.7664,2655.1,2654.8,0.04353239]
[1739205267796,3.76652,2655.0,2654.9,0.04341855]
[1739205267950,3.76634,2655.1,2654.9,0.04341855]
[1739205268309,3.76634,2655.1,2654.6,4.57034]
[1739205268445,3.76615,2655.3,2654.6,4.57034]
[1739205268446,3.76615,2655.3,2655.0,0.04332951]
[1739205268652,4.50663736,2655.8,2654.8,3.76665]
[1739205268653,4.59193,2655.9,2654.9,3.76648]
[1739205268964,3.7658,2655.5,2655.0,3.80661454]
[1739205269161,0.8267,2655.9,2655.0,0.04023454]
[1739205269364,0.287,2657.1,2654.5,6.66736454]
[1739205269365,4.59119,2656.4,2655.7,3.76543]
[1739205269655,2.90027454,2656.8,2655.2,3.76619]
[1739205269656,0.8267,2656.6,2656.1,3.76491]
[1739205270007,3.76405,2656.8,2656.2,0.04178003]
[1739205270209,3.76405,2656.8,2656.2,3.80647003]
[1739205270409,0.8267,2656.9,2656.2,3.80647003]
[1739205270410,0.8267,2656.9,2656.3,0.8033]
[1739205270700,3.76379,2656.9,2656.3,0.8484385]
[1739205270852,3.76394,2656.8,2656.3,0.8484385]
[1739205271047,3.76379,2656.9,2656.3,0.8484385]
[1739205271268,3.0,2657.0,2656.3,0.8484385]
[1739205271467,6.76364,2657.0,2656.4,3.7644]
[1739205271643,3.76355,2657.1,2656.4,7.5288]
[1739205271851,7.52716,2657.1,2656.5,0.04488063]
[1739205272052,3.76366,2657.0,2656.5,0.04488063]
[1739205272297,3.7642,2656.6,2656.5,0.04488063]
[1739205272497,3.76404,2656.8,2656.5,0.04488063]
[1739205272703,3.76404,2656.8,2656.3,0.8033]
[1739205273000,3.76406,2656.7,2656.3,0.8033]
[1739205273149,3.76406,2656.7,2656.4,0.04909506]
[1739205273355,3.76401,2656.8,2656.4,0.04909506]
[1739205274116,3.76412,2656.7,2656.4,0.04909506]
[1739205274586,3.76386,2656.9,2656.4,0.04909506]
[1739205275105,3.76406,2656.8,2656.3,0.8033]
[1739205275286,3.76406,2656.8,2656.5,0.04842941]
[1739205275612,3.7637,2657.0,2656.6,0.04829505]
[1739205275773,3.76395,2656.8,2656.6,0.04829505]
[1739205275974,7.52798,2656.8,2656.3,0.8033]
[1739205276306,3.76385,2656.9,2656.7,0.04816069]
[1739205276452,3.0,2657.0,2656.5,3.76434]
[1739205276654,6.76378,2656.9,2656.8,0.04802634]
[1739205276857,3.76378,2656.9,2656.3,0.8033]
[1739205277055,6.76378,2656.9,2656.8,0.04802634]
[1739205277273,3.76392,2656.8,2656.3,4.56793]
[1739205277566,3.76408,2656.7,2656.4,0.04856379]
[1739205277799,3.76416,2656.7,2656.4,0.04856379]
[1739205278298,3.76392,2656.8,2656.4,0.04856379]
[1739205278801,3.76416,2656.7,2656.5,0.04842941]
[1739205279187,3.76416,2656.7,2656.2,0.7776]
[1739205279367,3.76416,2656.7,2656.6,0.04829505]
[1739205279567,3.76392,2656.8,2656.2,0.7776]
[1739205279768,3.76408,2656.7,2656.3,0.04869818]
[1739205280268,3.76392,2656.8,2656.3,0.04869818]
[1739205280476,3.76415,2656.7,2656.3,0.04869818]
[1739205280705,3.76392,2656.8,2656.3,0.04869818]
[1739205281103,3.76422,2656.6,2656.3,0.04869818]
[1739205281814,3.76445,2656.5,2656.3,0.04869818]
[1739205281965,3.76422,2656.6,2656.3,0.04869818]
[1739205282612,3.76407,2656.7,2656.3,0.04869818]
[1739205283414,6.76388,2656.9,2656.3,0.04869818]
[1739205283415,3.76401,2656.8,2656.3,3.81328818]
[1739205283620,3.0,2656.9,2656.4,3.76443]
[1739205283816,6.76381,2656.9,2656.5,0.7776]
[1739205284020,6.76381,2656.9,2656.5,0.82602941]
[1739205284252,3.76394,2656.8,2656.5,0.82602941]
[1739205284524,3.7642,2656.6,2656.5,0.04842941]
[1739205285021,7.52796,2656.8,2656.5,0.04842941]
[1739205285180,3.76392,2656.8,2656.3,0.7876]
[1739205285380,3.76407,2656.7,2656.6,0.04829505]
[1739205285724,3.76302,2657.5,2656.9,3.76371]
[1739205285881,4.5575,2657.6,2657.1,0.7876]
[1739205286228,3.7626,2657.8,2657.2,0.05178245]
[1739205286377,3.7626,2657.8,2657.2,3.81506245]
[1739205286721,3.0,2657.7,2657.3,3.76319]
[1739205287087,3.76231,2658.0,2657.4,0.05139962]
[1739205287420,7.33436849,2658.5,2657.5,0.82522811]
[1739205287421,3.76152,2658.5,2657.5,0.82522811]
[1739205287719,3.0,2658.3,2657.9,0.7876]
[1739205288023,3.76185,2658.3,2658.0,0.05026988]
[1739205288223,3.76208,2658.1,2658.0,0.05026988]
[1739205288423,3.76208,2658.1,2657.2,3.7633]
[1739205288424,3.76321,2657.3,2657.2,0.7876]
[1739205288633,3.7638,2656.9,2656.4,0.7876]
[1739205288832,7.55761,2657.6,2656.4,0.7876]
[1739205288972,3.7643,2656.6,2656.4,0.7876]
[1739205289373,3.0,2657.3,2656.4,0.7876]
[1739205289627,0.7947,2657.4,2656.8,3.76385]
[1739205289806,3.76324,2657.3,2656.6,7.52823]
[1739205290124,3.76337,2657.2,2656.6,3.7641]
[1739205290281,3.76351,2657.1,2656.4,4.55202]
[1739205290483,3.76379,2656.9,2656.4,4.552]
[1739205290686,3.76379,2656.9,2656.4,0.7876]
[1739205291081,7.52798,2656.8,2656.4,0.7876]
[1739205291428,7.52798,2656.8,2656.1,3.76486]
[1739205291429,3.76423,2656.6,2656.1,0.7852]
[1739205291781,3.76439,2656.5,2656.1,0.7852]
[1739205292007,3.76436,2656.5,2656.1,0.7852]
[1739205294824,3.76464,2656.3,2655.8,4.55053]
[1739205295143,3.76457,2656.4,2655.8,4.5505]
[1739205295527,3.76457,2656.4,2655.8,0.7852]
[1739205296204,3.76457,2656.4,2655.8,4.55045]
[1739205296402,3.76457,2656.4,2655.9,3.76519]
[1739205298246,3.76429,2656.6,2655.3,7.52279647]
[1739205298247,3.76495,2656.1,2655.5,4.55088]
[1739205298839,3.76495,2656.1,2655.6,0.05488934]
[1739205299345,3.76473,2656.3,2655.7,3.76548]
[1739205299530,3.76473,2656.3,2655.8,3.76532]
[1739205299709,3.76473,2656.3,2655.7,3.76548]
[1739205299911,3.7648,2656.2,2655.7,3.76548]
[1739205300143,3.76473,2656.3,2655.7,3.76548]
[1739205300452,3.76473,2656.3,2655.7,3.76537]
[1739205300453,7.52947,2656.3,2655.7,3.76537]
[1739205300626,3.76488,2656.2,2655.7,3.76537]
[1739205300813,3.76473,2656.3,2655.7,7.53077]
[1739205301210,3.76507,2656.0,2655.5,0.7852]
[1739205301437,3.76551,2655.7,2655.2,0.7985]
[1739205301637,3.76558,2655.7,2655.2,0.7985]
[1739205302056,3.76558,2655.7,2655.0,3.76643]
[1739205302348,0.8169,2655.9,2654.9,0.7985]
[1739205302558,3.76669,2654.9,2654.5,0.7985]
[1739205302937,3.76669,2654.9,2654.2,4.5661]
[1739205302938,3.76691,2654.7,2654.2,4.5661]
[1739205303256,3.76719,2654.5,2654.2,0.7985]
[1739205303422,3.76703,2654.7,2654.2,0.7985]
[1739205303823,3.76719,2654.5,2654.2,0.7985]
[1739205304133,3.76694,2654.7,2654.2,0.7985]
[1739205304446,3.76727,2654.5,2654.2,0.7985]
[1739205304636,3.76747,2654.3,2653.9,0.7985]
[1739205304843,3.76728,2654.5,2653.9,4.56649]
[1739205305309,3.76698,2654.7,2654.1,3.76765]
[1739205305506,3.76708,2654.6,2653.9,4.56648]
[1739205305728,3.76763,2654.2,2653.7,0.7985]
[1739205305927,3.76742,2654.4,2653.8,3.76808]
[1739205306216,0.8169,2654.5,2654.0,3.76786]
[1739205306413,3.8169,2654.5,2654.0,3.76786]
[1739205306821,3.0,2654.5,2654.0,3.76786]
[1739205307013,6.76727,2654.5,2653.9,3.76795]
[1739205307562,3.76736,2654.4,2653.8,3.76812]
[1739205307856,3.76749,2654.3,2653.7,0.7985]
[1739205308459,3.76736,2654.4,2653.7,0.7985]
[1739205308609,3.76736,2654.4,2652.8,3.76958]
[1739205308610,3.0,2654.1,2653.4,0.7985]
[1739205308815,3.76812,2653.9,2653.4,0.7985]
[1739205309013,3.76842,2653.7,2653.5,0.04957637]
[1739205309511,7.31765,2654.2,2653.5,0.04957637]
[1739205309512,3.7678,2654.1,2653.5,0.04957637]
[1739205309666,4.58444,2654.3,2653.7,3.76828]
[1739205309867,0.8169,2654.3,2653.9,3.76803]
[1739205310018,0.8169,2654.6,2654.0,0.7985]
[1739205310222,0.8169,2655.0,2654.3,3.76735]
[1739205310467,0.8169,2655.0,2654.1,0.05052569]
[1739205310639,3.76731,2654.5,2654.4,0.05008151]
[1739205310963,3.7674,2654.4,2654.0,0.7985]
[1739205311167,3.7674,2654.4,2653.8,3.76809]
[1739205311483,3.76728,2654.5,2653.9,3.76802]
[1739205311656,7.5346,2654.5,2653.9,3.76802]
[1739205311855,7.53401,2654.7,2654.1,3.76762]
[1739205312082,3.7671,2654.6,2654.0,7.53562]
[1739205312239,0.8169,2655.0,2653.9,3.76803]
[1739205312421,3.0,2654.8,2653.8,3.76818]
[1739205312632,0.8169,2655.5,2654.0,0.7985]
[1739205312822,3.76627,2655.2,2654.7,3.76688]
[1739205313023,0.8169,2655.5,2654.6,0.7985]
[1739205313227,4.58267,2655.5,2655.0,3.76642]
[1739205314036,3.76555,2655.7,2655.0,3.76642]
[1739205314272,3.76563,2655.6,2655.0,3.76642]
[1739205314491,0.7766,2655.8,2654.8,3.76669]
[1739205314492,3.76594,2655.4,2654.8,3.76669]
[1739205314772,3.76594,2655.4,2654.8,7.53334]
[1739205314934,3.76613,2655.3,2654.7,3.76689]
[1739205315134,3.76622,2655.2,2654.6,4.56546]
[1739205315356,3.76622,2655.2,2654.7,3.76689]
[1739205315575,3.76622,2655.2,2654.6,4.56546]
[1739205315943,3.76594,2655.4,2654.8,3.76673]
[1739205316146,4.54202,2655.8,2654.7,3.80456558]
[1739205316473,3.7651,2656.0,2655.4,3.76582]
[1739205316658,3.0,2655.9,2655.3,0.7809]
[1739205316976,3.76538,2655.8,2655.3,0.7809]
[1739205317188,3.76538,2655.8,2655.0,11.71643]
[1739205317189,0.7766,2655.6,2655.2,3.76618]
[1739205317569,0.7766,2655.6,2655.0,15.48272]
[1739205317770,4.54223,2655.6,2655.0,11.71634]
[1739205317942,0.7766,2655.6,2655.0,11.71634]
[1739205318142,0.7766,2655.6,2655.2,3.76617]
[1739205318468,4.54222,2655.6,2655.0,11.71636]
[1739205318674,0.7766,2655.6,2655.0,7.95]
[1739205319057,4.54198,2655.8,2655.2,3.76605]
[1739205319391,4.54198,2655.8,2655.0,11.71638]
[1739205319392,7.53142,2655.6,2655.0,11.71638]
[1739205319782,3.76577,2655.5,2655.0,3.76638]
[1739205319971,3.7657,2655.6,2655.1,3.76632]
[1739205320170,4.542,2655.8,2655.0,0.03766326]
[1739205320371,4.542,2655.8,2655.1,3.7663]
[1739205320968,3.76548,2655.7,2655.2,3.76615]
[1739205321169,0.7766,2655.8,2654.9,4.54747]
[1739205321370,3.76613,2655.3,2654.9,0.7809]
[1739205321571,3.76632,2655.2,2654.6,0.7809]
[1739205321793,3.76629,2655.2,2654.6,4.5479]
[1739205322256,3.76644,2655.1,2654.6,0.7809]
[1739205322461,7.53288,2655.1,2654.6,0.7809]
[1739205322662,3.76653,2655.0,2654.4,3.76729]
[1739205322906,3.7667,2654.9,2654.3,7.53475]
[1739205323205,0.7766,2655.2,2654.2,0.7809]
[1739205323206,0.5575,2655.1,2654.2,0.7809]
[1739205323386,7.53343,2654.9,2654.3,3.76745]
[1739205323698,7.53391,2654.7,2654.2,0.7809]
[1739205324005,3.76756,2654.3,2653.8,0.7809]
[1739205324202,3.76764,2654.2,2653.7,3.76826]
[1739205324785,3.76741,2654.4,2653.7,3.76824]
[1739205325126,3.76741,2654.4,2653.9,3.76794]
[1739205325298,7.53487,2654.4,2653.8,3.76817]
[1739205325493,3.76741,2654.4,2653.9,3.76803]
[1739205326038,4.54308,2655.0,2654.4,3.76721]
[1739205326186,3.76676,2654.8,2654.2,3.76757]
[1739205326385,3.76676,2654.8,2654.2,7.53509]
[1739205326611,3.76676,2654.8,2654.2,3.76752]
[1739205326883,3.76676,2654.8,2654.2,3.76761]
[1739205327080,3.76676,2654.8,2654.3,3.76745]
[1739205327327,3.76663,2654.9,2654.2,3.80528322]
[1739205327488,3.7668,2654.8,2654.3,3.76746]
[1739205327881,4.54315,2655.0,2654.4,7.53454]
[1739205328086,3.76655,2655.0,2654.5,3.7671]
[1739205328315,3.76613,2655.3,2654.7,3.76678]
[1739205328528,3.76648,2655.0,2654.6,0.7809]
[1739205328699,3.76679,2654.8,2654.1,0.7809]
[1739205329026,3.76679,2654.8,2654.2,3.76752]
[1739205329411,3.76683,2654.8,2654.2,3.76752]
[1739205329818,3.76726,2654.5,2654.1,0.7809]
[1739205330435,7.53399,2654.7,2654.1,0.7809]
[1739205330655,3.76698,2654.7,2654.1,4.54863]
[1739205330824,3.76671,2654.9,2654.2,3.76758]
[1739205330982,3.76662,2654.9,2654.4,3.76728]
[1739205331189,7.53332,2654.9,2654.4,3.76728]
[1739205331529,0.7766,2655.1,2654.2,3.76748]
[1739205331731,4.54303,2655.1,2654.6,3.76702]
[1739205331932,3.76591,2655.4,2654.7,0.8086]
[1739205332151,3.76664,2654.9,2654.4,4.57579]
[1739205332354,3.76628,2655.2,2654.4,0.8086]
[1739205332509,0.8006,2655.5,2654.5,0.03766733]
[1739205332718,4.56603,2655.8,2655.0,0.8086]
[1739205333018,4.56603,2655.8,2655.1,3.87461277]
[1739205333019,3.76565,2655.6,2655.1,3.87461277]
[1739205333230,3.76565,2655.6,2655.1,0.10828277]
[1739205333231,3.76577,2655.5,2655.1,0.10828277]
[1739205333433,3.76565,2655.6,2655.1,3.87451277]
[1739205333633,3.76577,2655.5,2655.1,0.10828277]
[1739205333857,3.7655,2655.7,2655.1,3.87454277]
[1739205334357,3.76515,2656.0,2655.3,3.76593]
[1739205334559,3.0,2655.9,2655.3,3.76593]
[1739205334761,6.76528,2655.9,2655.3,3.76593]
[1739205334971,3.0,2655.9,2655.5,3.76573]
[1739205335126,3.76479,2656.2,2655.6,4.57421]
[1739205335464,0.8006,2656.4,2655.6,4.57421]
[1739205335465,3.76527,2655.9,2655.6,0.10774012]
[1739205335665,0.8006,2656.4,2655.6,0.10774012]
[1739205335975,0.8006,2656.4,2655.8,3.76521]
[1739205336264,3.76463,2656.3,2655.9,0.10697598]
[1739205336780,3.76506,2656.0,2655.9,0.10697598]
[1739205337280,3.7657,2655.6,2655.0,11.71639]
[1739205337458,3.7657,2655.6,2655.0,3.76639]
[1739205337642,7.53089,2655.8,2655.1,3.76621]
[1739205337837,6.76514,2656.0,2655.3,3.76591]
[1739205338060,3.76543,2655.8,2655.2,3.76605]
[1739205338380,3.76543,2655.8,2655.2,7.53216]
[1739205338661,3.76543,2655.8,2655.2,3.76605]
[1739205338866,6.76512,2656.0,2655.4,3.76583]
[1739205339050,6.76512,2656.0,2655.5,4.57432]
[1739205339254,3.0,2656.1,2655.5,0.8086]
[1739205339453,3.76522,2655.9,2655.5,0.8086]
[1739205339696,0.55,2656.1,2655.2,0.8086]
[1739205339827,4.56634,2655.6,2654.9,0.8086]
[1739205340029,3.76587,2655.5,2654.9,4.57518]
[1739205340392,3.76595,2655.4,2654.9,4.57518]
[1739205340553,3.76587,2655.5,2654.9,4.57518]
[1739205340761,3.76587,2655.5,2654.9,4.57512]
[1739205341132,3.76603,2655.4,2654.9,4.57509]